[Event "Early-Titled-Tuesday-Blitz-January-16-2024"]
[Site "Chess.com"]
[Date "2024.01.16"]
[Round "8"]
[White "maciek_92"]
[Black "KacperKacprzak"]
[Result "1-0"]
[WhiteElo "2853"]
[BlackElo "2706"]
[TimeControl "180+1"]
[EndTime "9:33:05 PST"]
[Termination "maciek_92 won on time"]

1. c4 {[%clk 0:03:00.9]} 1... e6 {[%clk 0:02:54.1]} 2. Nf3 {[%clk 0:03:00.7]}
2... d5 {[%clk 0:02:54.3]} 3. e3 {[%clk 0:03:00.7]} 3... Nf6 {[%clk 0:02:53.8]}
4. b3 {[%clk 0:03:01.2]} 4... Bd6 {[%clk 0:02:51.6]} 5. Bb2 {[%clk 0:03:01.1]}
5... O-O {[%clk 0:02:51.6]} 6. Qc2 {[%clk 0:03:00.1]} 6... Nc6 {[%clk
0:02:48.4]} 7. c5 {[%clk 0:02:51.4]} 7... Be7 {[%clk 0:02:47.5]} 8. d4 {[%clk
0:02:52.2]} 8... Ne4 {[%clk 0:02:41.4]} 9. a3 {[%clk 0:02:52.1]} 9... f5 {[%clk
0:02:40.8]} 10. b4 {[%clk 0:02:52.1]} 10... a6 {[%clk 0:02:41.5]} 11. Be2 {[%clk
0:02:48.6]} 11... Bd7 {[%clk 0:02:41.5]} 12. O-O {[%clk 0:02:44.6]} 12... g5
{[%clk 0:02:41.2]} 13. Ne1 {[%clk 0:02:44.6]} 13... g4 {[%clk 0:02:40.8]} 14.
Nd3 {[%clk 0:02:38.2]} 14... Qe8 {[%clk 0:02:37.2]} 15. Nd2 {[%clk 0:02:16.4]}
15... h5 {[%clk 0:02:28.2]} 16. Nf4 {[%clk 0:02:11.2]} 16... Bg5 {[%clk
0:02:26.5]} 17. f3 {[%clk 0:02:05]} 17... Nxd2 {[%clk 0:02:05.6]} 18. Qxd2
{[%clk 0:02:05.9]} 18... Bxf4 {[%clk 0:01:58.9]} 19. exf4 {[%clk 0:02:05.7]}
19... Qg6 {[%clk 0:01:59.8]} 20. a4 {[%clk 0:01:55.2]} 20... Qg7 {[%clk
0:01:26.3]} 21. b5 {[%clk 0:01:11.8]} 21... axb5 {[%clk 0:01:22.8]} 22. axb5
{[%clk 0:01:12.7]} 22... Ne7 {[%clk 0:01:23.1]} 23. Ra5 {[%clk 0:01:07.3]} 23...
Ng6 {[%clk 0:01:06]} 24. Rfa1 {[%clk 0:01:03.4]} 24... Rab8 {[%clk 0:01:06.4]}
25. fxg4 {[%clk 0:00:58.3]} 25... hxg4 {[%clk 0:01:05.8]} 26. g3 {[%clk
0:00:56.4]} 26... Kf7 {[%clk 0:01:02.8]} 27. Ra7 {[%clk 0:00:56.4]} 27... Rh8
{[%clk 0:00:49.7]} 28. c6 {[%clk 0:00:54.7]} 28... Bc8 {[%clk 0:00:49.8]} 29. b6
{[%clk 0:00:54.5]} 29... Kg8 {[%clk 0:00:38.6]} 30. Ra8 {[%clk 0:00:51.1]} 30...
Rxa8 {[%clk 0:00:35.4]} 31. Rxa8 {[%clk 0:00:52]} 31... Kh7 {[%clk 0:00:35.7]}
32. Ra7 {[%clk 0:00:37.7]} 32... cxb6 {[%clk 0:00:20.9]} 33. cxb7 {[%clk
0:00:36.2]} 33... Bxb7 {[%clk 0:00:21.8]} 34. Ba6 {[%clk 0:00:35.3]} 34... Rb8
{[%clk 0:00:21.7]} 35. Qc3 {[%clk 0:00:18.7]} 35... Qd7 {[%clk 0:00:21.7]} 36.
Ba3 {[%clk 0:00:15.6]} 36... Kh6 {[%clk 0:00:15.7]} 37. Bb4 {[%clk 0:00:10.5]}
37... Nh8 {[%clk 0:00:04.3]} 38. h4 {[%clk 0:00:07.7]} 38... gxh3 {[%clk
0:00:04.2]} 39. Kh2 {[%clk 0:00:08.1]} 39... Nf7 {[%clk 0:00:04.8]} 40. Kxh3
{[%clk 0:00:08]} 40... Nd8 {[%clk 0:00:05.1]} 41. Bf8+ {[%clk 0:00:06.8]} 41...
Kg6 {[%clk 0:00:04.8]} 42. Bxb7 {[%clk 0:00:06.9]} 42... Rxb7 {[%clk 0:00:04.7]}
43. Ra1 {[%clk 0:00:07.5]} 43... Qh7+ {[%clk 0:00:03.7]} 44. Kg2 {[%clk
0:00:07.2]} 44... Rc7 {[%clk 0:00:04.6]} 45. Qd3 {[%clk 0:00:05.4]} 45... Qh5
{[%clk 0:00:02.9]} 46. Rh1 {[%clk 0:00:03.6]} 1-0

[Event "Early-Titled-Tuesday-Blitz-January-16-2024"]
[Site "Chess.com"]
[Date "2024.01.16"]
[Round "8"]
[White "FMCASTE"]
[Black "DamianoLew95"]
[Result "0-1"]
[WhiteElo "2489"]
[BlackElo "2668"]
[TimeControl "180+1"]
[EndTime "9:33:06 PST"]
[Termination "DamianoLew95 won on time"]

1. d4 {[%clk 0:03:00.9]} 1... Nf6 {[%clk 0:02:59.8]} 2. Bf4 {[%clk 0:03:00.4]}
2... e6 {[%clk 0:02:59.8]} 3. e3 {[%clk 0:02:59.8]} 3... b6 {[%clk 0:02:56.7]}
4. Qf3 {[%clk 0:02:58.9]} 4... d5 {[%clk 0:02:54]} 5. Nd2 {[%clk 0:02:55.9]}
5... Bb7 {[%clk 0:02:49.7]} 6. Bd3 {[%clk 0:02:55.2]} 6... Nbd7 {[%clk
0:02:47.1]} 7. g4 {[%clk 0:02:53.1]} 7... h6 {[%clk 0:02:43.9]} 8. h4 {[%clk
0:02:52.7]} 8... Bd6 {[%clk 0:02:37.1]} 9. g5 {[%clk 0:02:51.5]} 9... Ng8 {[%clk
0:02:26.1]} 10. gxh6 {[%clk 0:02:33.7]} 10... Nxh6 {[%clk 0:02:23.8]} 11. Bxd6
{[%clk 0:02:34.3]} 11... cxd6 {[%clk 0:02:23.7]} 12. Qg3 {[%clk 0:02:33.4]}
12... Qe7 {[%clk 0:02:19.2]} 13. Qxg7 {[%clk 0:02:32]} 13... O-O-O {[%clk
0:02:18.3]} 14. Qg5 {[%clk 0:02:24.2]} 14... f6 {[%clk 0:02:17.8]} 15. Qf4
{[%clk 0:02:18.2]} 15... e5 {[%clk 0:02:17.9]} 16. dxe5 {[%clk 0:02:17.3]} 16...
dxe5 {[%clk 0:02:15.1]} 17. Qa4 {[%clk 0:02:16.9]} 17... Kb8 {[%clk 0:02:04.1]}
18. O-O-O {[%clk 0:02:16.9]} 18... Nc5 {[%clk 0:01:44.4]} 19. Qa3 {[%clk
0:02:12]} 19... e4 {[%clk 0:01:44.4]} 20. Be2 {[%clk 0:02:08.2]} 20... d4 {[%clk
0:01:44.5]} 21. exd4 {[%clk 0:01:42.6]} 21... Rxd4 {[%clk 0:01:37.7]} 22. Qe3
{[%clk 0:01:34.9]} 22... Nf5 {[%clk 0:01:29.2]} 23. Qf4+ {[%clk 0:01:32.9]}
23... Qe5 {[%clk 0:00:55]} 24. Qxe5+ {[%clk 0:01:31.9]} 24... fxe5 {[%clk
0:00:55.9]} 25. Rh3 {[%clk 0:01:22.5]} 25... Rxh4 {[%clk 0:00:47.6]} 26. Nf1
{[%clk 0:01:03.7]} 26... Rf4 {[%clk 0:00:44.5]} 27. Rh8+ {[%clk 0:00:59.7]}
27... Kc7 {[%clk 0:00:44.2]} 28. Nh3 {[%clk 0:00:55.4]} 28... Rh4 {[%clk
0:00:34.1]} 29. Rxh4 {[%clk 0:00:54.2]} 29... Nxh4 {[%clk 0:00:35]} 30. Ne3
{[%clk 0:00:53.3]} 30... Ne6 {[%clk 0:00:27.9]} 31. Rg1 {[%clk 0:00:47.6]} 31...
Nf4 {[%clk 0:00:26.5]} 32. Rg7+ {[%clk 0:00:44.3]} 32... Rd7 {[%clk 0:00:26.4]}
33. Rxd7+ {[%clk 0:00:42.9]} 33... Kxd7 {[%clk 0:00:27.3]} 34. Bg4+ {[%clk
0:00:42.1]} 34... Ke7 {[%clk 0:00:23.8]} 35. Kd2 {[%clk 0:00:42]} 35... Kf6
{[%clk 0:00:19.8]} 36. Ng1 {[%clk 0:00:35.8]} 36... Nhg6 {[%clk 0:00:18.5]} 37.
c4 {[%clk 0:00:34.3]} 37... Ne7 {[%clk 0:00:18.6]} 38. b4 {[%clk 0:00:32.5]}
38... Nc6 {[%clk 0:00:19]} 39. a3 {[%clk 0:00:32.2]} 39... Nd4 {[%clk
0:00:19.2]} 40. Ne2 {[%clk 0:00:27.6]} 40... Ke7 {[%clk 0:00:15.8]} 41. Ng3
{[%clk 0:00:24.7]} 41... Kf6 {[%clk 0:00:15]} 42. Kc3 {[%clk 0:00:21.3]} 42...
Kg5 {[%clk 0:00:14.6]} 43. Bd7 {[%clk 0:00:19.4]} 43... Nd3 {[%clk 0:00:12.1]}
44. Nd1 {[%clk 0:00:08.8]} 44... Kf4 {[%clk 0:00:10.7]} 45. a4 {[%clk
0:00:02.9]} 45... Nxf2 {[%clk 0:00:06.2]} 46. Nxf2 {[%clk 0:00:02.3]} 46... Kxg3
{[%clk 0:00:06.6]} 0-1

[Event "Early-Titled-Tuesday-Blitz-January-16-2024"]
[Site "Chess.com"]
[Date "2024.01.16"]
[Round "8"]
[White "Thursday_the_14_th"]
[Black "Nikita_Klepikov"]
[Result "1/2-1/2"]
[WhiteElo "2628"]
[BlackElo "2389"]
[TimeControl "180+1"]
[EndTime "9:33:07 PST"]
[Termination "Game drawn by repetition"]

1. e4 {[%clk 0:03:00.9]} 1... c5 {[%clk 0:03:00.3]} 2. Nf3 {[%clk 0:03:00.6]}
2... Nc6 {[%clk 0:03:00.8]} 3. d4 {[%clk 0:03:01]} 3... cxd4 {[%clk 0:03:01.7]}
4. Nxd4 {[%clk 0:03:01.8]} 4... g6 {[%clk 0:03:02.4]} 5. c4 {[%clk 0:03:01.8]}
5... Nf6 {[%clk 0:03:02.2]} 6. Nc3 {[%clk 0:03:01.2]} 6... d6 {[%clk 0:03:01.6]}
7. Be2 {[%clk 0:03:00.8]} 7... Nxd4 {[%clk 0:03:00]} 8. Qxd4 {[%clk 0:03:01.2]}
8... Bg7 {[%clk 0:03:00.6]} 9. Be3 {[%clk 0:03:01.9]} 9... O-O {[%clk
0:02:59.9]} 10. Qd2 {[%clk 0:03:02.3]} 10... Ng4 {[%clk 0:02:59.9]} 11. Bxg4
{[%clk 0:03:02]} 11... Bxg4 {[%clk 0:02:59.2]} 12. Bd4 {[%clk 0:03:01]} 12...
Bxd4 {[%clk 0:02:52.4]} 13. Qxd4 {[%clk 0:03:01.9]} 13... Be6 {[%clk 0:02:52.8]}
14. O-O {[%clk 0:03:00.5]} 14... Qa5 {[%clk 0:02:50.9]} 15. f4 {[%clk
0:02:57.6]} 15... Qc5 {[%clk 0:02:48.9]} 16. Qxc5 {[%clk 0:02:55.2]} 16... dxc5
{[%clk 0:02:49.8]} 17. b3 {[%clk 0:02:48.4]} 17... Rfd8 {[%clk 0:02:49.7]} 18.
Rad1 {[%clk 0:02:46.7]} 18... Rxd1 {[%clk 0:02:01.9]} 19. Rxd1 {[%clk
0:02:46.3]} 19... Kf8 {[%clk 0:01:55.8]} 20. Kf2 {[%clk 0:02:44.3]} 20... Ke8
{[%clk 0:01:56]} 21. Nb5 {[%clk 0:02:41.9]} 21... Rc8 {[%clk 0:01:47.8]} 22. a4
{[%clk 0:02:12.4]} 22... a6 {[%clk 0:01:34.7]} 23. Nc3 {[%clk 0:02:10.4]} 23...
Rd8 {[%clk 0:01:23.3]} 24. Rxd8+ {[%clk 0:02:04]} 24... Kxd8 {[%clk 0:01:24.2]}
25. a5 {[%clk 0:02:04.1]} 25... Bd7 {[%clk 0:01:24.7]} 26. Ke3 {[%clk
0:02:00.6]} 26... Bc6 {[%clk 0:01:24.8]} 27. g4 {[%clk 0:01:59.4]} 27... Kc7
{[%clk 0:01:24.8]} 28. e5 {[%clk 0:01:53.8]} 28... b6 {[%clk 0:01:22.9]} 29.
axb6+ {[%clk 0:01:54.7]} 29... Kxb6 {[%clk 0:01:23.2]} 30. Nd5+ {[%clk
0:01:50.5]} 30... Ka5 {[%clk 0:00:16.9]} 31. Nxe7 {[%clk 0:01:06.5]} 31... Bd7
{[%clk 0:00:16.8]} 32. Nd5 {[%clk 0:00:36.9]} 32... Bxg4 {[%clk 0:00:16.3]} 33.
Kd2 {[%clk 0:00:34.1]} 33... Bf5 {[%clk 0:00:13.2]} 34. Kc3 {[%clk 0:00:33.8]}
34... h5 {[%clk 0:00:12.6]} 35. h4 {[%clk 0:00:29.2]} 35... Bg4 {[%clk
0:00:12.4]} 36. Nf6 {[%clk 0:00:23]} 36... Bf5 {[%clk 0:00:11.6]} 37. Ne8 {[%clk
0:00:22.6]} 37... Kb6 {[%clk 0:00:09.5]} 38. Nd6 {[%clk 0:00:22.4]} 38... Be6
{[%clk 0:00:09.4]} 39. Ne4 {[%clk 0:00:21.5]} 39... Bf5 {[%clk 0:00:08.6]} 40.
Ng5 {[%clk 0:00:20.5]} 40... Be6 {[%clk 0:00:08.7]} 41. Ne4 {[%clk 0:00:16]}
41... Kc6 {[%clk 0:00:08]} 42. b4 {[%clk 0:00:15.4]} 42... cxb4+ {[%clk
0:00:07.3]} 43. Kxb4 {[%clk 0:00:16.3]} 43... Kb6 {[%clk 0:00:06.6]} 44. c5+
{[%clk 0:00:14.8]} 44... Kc6 {[%clk 0:00:06.5]} 45. Nd2 {[%clk 0:00:15.3]} 45...
a5+ {[%clk 0:00:05.3]} 46. Kc3 {[%clk 0:00:12.9]} 46... Kxc5 {[%clk 0:00:05.7]}
47. Ne4+ {[%clk 0:00:13.7]} 47... Kd5 {[%clk 0:00:05.8]} 48. Nf6+ {[%clk
0:00:13.8]} 48... Kc5 {[%clk 0:00:06.1]} 49. Ne4+ {[%clk 0:00:13.6]} 49... Kb5
{[%clk 0:00:06.3]} 50. Nd6+ {[%clk 0:00:13.9]} 50... Kc5 {[%clk 0:00:06.4]} 51.
Nb7+ {[%clk 0:00:13]} 51... Kb6 {[%clk 0:00:06.6]} 52. Nd6 {[%clk 0:00:13.2]}
52... Kc5 {[%clk 0:00:06.2]} 53. Ne4+ {[%clk 0:00:13]} 1/2-1/2

[Event "Early-Titled-Tuesday-Blitz-January-16-2024"]
[Site "Chess.com"]
[Date "2024.01.16"]
[Round "8"]
[White "AlexLongson"]
[Black "PapaieDudu"]
[Result "0-1"]
[WhiteElo "2258"]
[BlackElo "2399"]
[TimeControl "180+1"]
[EndTime "9:33:07 PST"]
[Termination "PapaieDudu won on time"]

1. e4 {[%clk 0:02:55.5]} 1... c5 {[%clk 0:02:59.9]} 2. Nf3 {[%clk 0:02:55]} 2...
d6 {[%clk 0:03:00.1]} 3. Bb5+ {[%clk 0:02:54.6]} 3... Nd7 {[%clk 0:02:58]} 4. d4
{[%clk 0:02:53.2]} 4... cxd4 {[%clk 0:02:58.2]} 5. Qxd4 {[%clk 0:02:52.6]} 5...
a6 {[%clk 0:02:57.3]} 6. Bxd7+ {[%clk 0:02:52.6]} 6... Bxd7 {[%clk 0:02:56.6]}
7. c4 {[%clk 0:02:52.1]} 7... b5 {[%clk 0:02:54.3]} 8. Nc3 {[%clk 0:02:36.5]}
8... bxc4 {[%clk 0:02:53.7]} 9. Qxc4 {[%clk 0:02:35.8]} 9... Nf6 {[%clk
0:02:50.6]} 10. e5 {[%clk 0:02:22.7]} 10... Rc8 {[%clk 0:02:44.9]} 11. Qxa6
{[%clk 0:02:20.1]} 11... Ng4 {[%clk 0:02:35.2]} 12. exd6 {[%clk 0:02:10.8]}
12... Rc6 {[%clk 0:02:34.9]} 13. Qe2 {[%clk 0:01:59.2]} 13... Rxd6 {[%clk
0:02:34.4]} 14. O-O {[%clk 0:01:57.4]} 14... e5 {[%clk 0:02:34.1]} 15. h3 {[%clk
0:01:53.8]} 15... Nf6 {[%clk 0:02:27.5]} 16. Qxe5+ {[%clk 0:01:53.3]} 16... Re6
{[%clk 0:02:28.1]} 17. Qg5 {[%clk 0:01:33.3]} 17... Be7 {[%clk 0:02:26.6]} 18.
Nd4 {[%clk 0:01:25.1]} 18... Rd6 {[%clk 0:02:19.3]} 19. Nf5 {[%clk 0:01:21.7]}
19... Rg8 {[%clk 0:01:57.2]} 20. Nxd6+ {[%clk 0:01:14.3]} 20... Bxd6 {[%clk
0:01:58.1]} 21. Re1+ {[%clk 0:01:13.7]} 21... Kf8 {[%clk 0:01:57.8]} 22. Bf4
{[%clk 0:01:11]} 22... Be7 {[%clk 0:01:55.4]} 23. Rad1 {[%clk 0:01:09.1]} 23...
h6 {[%clk 0:01:54]} 24. Qe5 {[%clk 0:01:05.4]} 24... g5 {[%clk 0:01:53.3]} 25.
Bh2 {[%clk 0:00:57.3]} 25... g4 {[%clk 0:01:53.4]} 26. Nd5 {[%clk 0:00:45.9]}
26... Nxd5 {[%clk 0:01:37.5]} 27. Rxd5 {[%clk 0:00:44.9]} 27... gxh3 {[%clk
0:01:37.1]} 28. Red1 {[%clk 0:00:25.9]} 28... Rxg2+ {[%clk 0:01:34.1]} 29. Kh1
{[%clk 0:00:24.5]} 29... Qa8 {[%clk 0:01:01]} 30. Qh8+ {[%clk 0:00:19]} 30...
Rg8 {[%clk 0:01:01.6]} 31. Qxh6+ {[%clk 0:00:19.2]} 31... Ke8 {[%clk 0:01:02.1]}
32. f3 {[%clk 0:00:16.8]} 32... Bc6 {[%clk 0:00:50.9]} 33. Qd2 {[%clk
0:00:10.9]} 33... Rg2 {[%clk 0:00:39.8]} 34. Qa5 {[%clk 0:00:06]} 34... Qxa5
{[%clk 0:00:28.6]} 35. Rxa5 {[%clk 0:00:05.3]} 35... Bxf3 {[%clk 0:00:29.2]} 36.
Rd3 {[%clk 0:00:02.6]} 36... Bc6 {[%clk 0:00:13.8]} 37. Rc3 {[%clk 0:00:02.4]}
37... Bf3 {[%clk 0:00:07.2]} 38. Rxf3 {[%clk 0:00:01.9]} 38... Bb4 {[%clk
0:00:03.4]} 39. Ra8+ {[%clk 0:00:02.8]} 39... Kd7 {[%clk 0:00:03.5]} 40. Rxh3
{[%clk 0:00:03]} 40... Rxb2 {[%clk 0:00:03.5]} 41. Rd3+ {[%clk 0:00:03.5]} 41...
Kc6 {[%clk 0:00:03.7]} 42. Bg1 {[%clk 0:00:04]} 42... Rb1 {[%clk 0:00:04]} 43.
Rc8+ {[%clk 0:00:02.8]} 43... Kb7 {[%clk 0:00:04.2]} 44. Rcd8 {[%clk 0:00:01.8]}
44... Bc5 {[%clk 0:00:04.2]} 45. R8d7+ {[%clk 0:00:01.8]} 45... Kc6 {[%clk
0:00:04.9]} 46. Rd1 {[%clk 0:00:02.2]} 46... Rb4 {[%clk 0:00:04.5]} 47. R7d5
{[%clk 0:00:01.9]} 47... Rh4+ {[%clk 0:00:05.1]} 48. Kg2 {[%clk 0:00:01.9]}
48... Be7 {[%clk 0:00:05.2]} 0-1

[Event "Early-Titled-Tuesday-Blitz-January-16-2024"]
[Site "Chess.com"]
[Date "2024.01.16"]
[Round "8"]
[White "SahibSinghKnight"]
[Black "Mistango"]
[Result "0-1"]
[WhiteElo "2658"]
[BlackElo "2501"]
[TimeControl "180+1"]
[EndTime "9:33:16 PST"]
[Termination "Mistango won by resignation"]

1. e4 {[%clk 0:02:57.8]} 1... e5 {[%clk 0:02:57.6]} 2. Nf3 {[%clk 0:02:57.1]}
2... Nc6 {[%clk 0:02:57.6]} 3. Bb5 {[%clk 0:02:55.5]} 3... Nf6 {[%clk
0:02:56.5]} 4. O-O {[%clk 0:02:54.1]} 4... Nxe4 {[%clk 0:02:56.4]} 5. d4 {[%clk
0:02:53.6]} 5... Nd6 {[%clk 0:02:56.4]} 6. Bxc6 {[%clk 0:02:53.4]} 6... dxc6
{[%clk 0:02:57.3]} 7. dxe5 {[%clk 0:02:54.1]} 7... Nf5 {[%clk 0:02:57.7]} 8.
Qxd8+ {[%clk 0:02:54.6]} 8... Kxd8 {[%clk 0:02:58.5]} 9. Nc3 {[%clk 0:02:53.6]}
9... h6 {[%clk 0:02:58.3]} 10. Rd1+ {[%clk 0:02:52.2]} 10... Ke8 {[%clk
0:02:56.7]} 11. h3 {[%clk 0:02:49.8]} 11... Be6 {[%clk 0:02:56.5]} 12. b3 {[%clk
0:02:43.6]} 12... Rd8 {[%clk 0:02:55.7]} 13. Bb2 {[%clk 0:02:37.8]} 13... Rd7
{[%clk 0:02:54.6]} 14. Ne2 {[%clk 0:02:29]} 14... g5 {[%clk 0:02:50.4]} 15. Nd2
{[%clk 0:02:22.2]} 15... Ne7 {[%clk 0:02:13]} 16. Ne4 {[%clk 0:02:19.6]} 16...
Kd8 {[%clk 0:02:03]} 17. Nc5 {[%clk 0:02:15.3]} 17... Rxd1+ {[%clk 0:02:01.8]}
18. Rxd1+ {[%clk 0:02:14.4]} 18... Kc8 {[%clk 0:01:55.8]} 19. Nxe6 {[%clk
0:02:14.5]} 19... fxe6 {[%clk 0:01:55.3]} 20. Nd4 {[%clk 0:02:15.4]} 20... Kd7
{[%clk 0:01:51.1]} 21. c4 {[%clk 0:01:50.6]} 21... Ng6 {[%clk 0:01:31.8]} 22.
Bc3 {[%clk 0:01:22.2]} 22... Bc5 {[%clk 0:01:04.5]} 23. Nf5+ {[%clk 0:01:11.7]}
23... Kc8 {[%clk 0:01:02.7]} 24. Ng7 {[%clk 0:01:11]} 24... Nf4 {[%clk
0:01:02.8]} 25. Kf1 {[%clk 0:00:55.7]} 25... Rg8 {[%clk 0:00:58.6]} 26. b4
{[%clk 0:00:42.3]} 26... Bb6 {[%clk 0:00:28.8]} 27. g3 {[%clk 0:00:27.3]} 27...
Rxg7 {[%clk 0:00:23.9]} 28. gxf4 {[%clk 0:00:24.6]} 28... c5 {[%clk 0:00:20.6]}
29. f5 {[%clk 0:00:23.2]} 29... exf5 {[%clk 0:00:19.2]} 30. e6 {[%clk
0:00:23.6]} 30... Rg8 {[%clk 0:00:18.1]} 31. b5 {[%clk 0:00:17.5]} 31... Re8
{[%clk 0:00:15.4]} 32. Bf6 {[%clk 0:00:17]} 32... c6 {[%clk 0:00:15.7]} 33. bxc6
{[%clk 0:00:17.1]} 33... Rxe6 {[%clk 0:00:13.9]} 34. cxb7+ {[%clk 0:00:15.5]}
34... Kxb7 {[%clk 0:00:14.8]} 35. Rd7+ {[%clk 0:00:15.6]} 35... Kc6 {[%clk
0:00:13.1]} 36. Rf7 {[%clk 0:00:16.2]} 36... Re4 {[%clk 0:00:12.8]} 37. Bg7
{[%clk 0:00:14]} 37... Rxc4 {[%clk 0:00:12.3]} 38. Bxh6 {[%clk 0:00:13.5]} 38...
g4 {[%clk 0:00:12.6]} 39. h4 {[%clk 0:00:12]} 39... Rc2 {[%clk 0:00:07.3]} 40.
Rxf5 {[%clk 0:00:11.5]} 40... c4 {[%clk 0:00:07.3]} 41. h5 {[%clk 0:00:11.2]}
41... c3 {[%clk 0:00:07.2]} 42. Bf4 {[%clk 0:00:08.2]} 42... Rxa2 {[%clk
0:00:05.4]} 43. h6 {[%clk 0:00:07.5]} 43... Rxf2+ {[%clk 0:00:04.2]} 44. Ke1
{[%clk 0:00:07.7]} 44... c2 {[%clk 0:00:04.2]} 45. h7 {[%clk 0:00:07]} 45...
Rxf4 {[%clk 0:00:03.6]} 46. Kd2 {[%clk 0:00:07]} 46... Rd4+ {[%clk 0:00:01.7]}
47. Kxc2 {[%clk 0:00:06.4]} 47... Rd8 {[%clk 0:00:02.6]} 48. Rh5 {[%clk
0:00:06]} 48... Rh8 {[%clk 0:00:02.6]} 49. Kd3 {[%clk 0:00:06]} 49... g3 {[%clk
0:00:03.1]} 0-1

[Event "Early-Titled-Tuesday-Blitz-January-16-2024"]
[Site "Chess.com"]
[Date "2024.01.16"]
[Round "8"]
[White "evgchess5"]
[Black "K_A_S_T_O_R"]
[Result "1-0"]
[WhiteElo "2992"]
[BlackElo "2915"]
[TimeControl "180+1"]
[EndTime "9:33:18 PST"]
[Termination "evgchess5 won by resignation"]

1. e4 {[%clk 0:02:58.6]} 1... c5 {[%clk 0:02:59.4]} 2. Nf3 {[%clk 0:02:57.9]}
2... d6 {[%clk 0:02:59.5]} 3. Bb5+ {[%clk 0:02:56.8]} 3... Nc6 {[%clk
0:02:59.2]} 4. d4 {[%clk 0:02:55.6]} 4... cxd4 {[%clk 0:02:58.8]} 5. Qxd4 {[%clk
0:02:55.4]} 5... Bd7 {[%clk 0:02:59]} 6. Qd3 {[%clk 0:02:54.4]} 6... Nf6 {[%clk
0:02:56.9]} 7. c4 {[%clk 0:02:54.2]} 7... g6 {[%clk 0:02:50.2]} 8. O-O {[%clk
0:02:54.1]} 8... Bg7 {[%clk 0:02:50.4]} 9. Nc3 {[%clk 0:02:54.3]} 9... O-O
{[%clk 0:02:50.4]} 10. h3 {[%clk 0:02:54.5]} 10... a6 {[%clk 0:02:47.5]} 11.
Bxc6 {[%clk 0:02:54.4]} 11... Bxc6 {[%clk 0:02:47.8]} 12. Nd4 {[%clk 0:02:54.4]}
12... Nd7 {[%clk 0:02:46.1]} 13. Be3 {[%clk 0:02:54.1]} 13... Rc8 {[%clk
0:02:45]} 14. Rac1 {[%clk 0:02:53.9]} 14... Qa5 {[%clk 0:02:38.6]} 15. b3 {[%clk
0:02:51.6]} 15... Nc5 {[%clk 0:02:27.9]} 16. Qd2 {[%clk 0:02:51.2]} 16... Qd8
{[%clk 0:02:18.9]} 17. f3 {[%clk 0:02:49]} 17... Ne6 {[%clk 0:01:58.8]} 18. Nde2
{[%clk 0:02:42.7]} 18... Re8 {[%clk 0:01:49.5]} 19. Rfd1 {[%clk 0:02:25.3]}
19... Qa5 {[%clk 0:01:46]} 20. Nd5 {[%clk 0:02:14.8]} 20... Qxd2 {[%clk
0:01:45.2]} 21. Rxd2 {[%clk 0:02:14.9]} 21... f6 {[%clk 0:01:33.7]} 22. Nb6
{[%clk 0:02:03]} 22... Rcd8 {[%clk 0:01:33.4]} 23. a4 {[%clk 0:01:56.4]} 23...
Nc5 {[%clk 0:01:27.7]} 24. Rb1 {[%clk 0:01:48.5]} 24... f5 {[%clk 0:01:22.1]}
25. exf5 {[%clk 0:01:47.3]} 25... gxf5 {[%clk 0:01:22.7]} 26. Nd4 {[%clk
0:01:46.7]} 26... f4 {[%clk 0:01:13.1]} 27. Bf2 {[%clk 0:01:31.8]} 27... Bxd4
{[%clk 0:01:09.3]} 28. Bxd4 {[%clk 0:01:29]} 28... Nd7 {[%clk 0:01:07.7]} 29.
Re1 {[%clk 0:01:14.8]} 29... Kf7 {[%clk 0:00:58]} 30. b4 {[%clk 0:01:00.5]}
30... Nxb6 {[%clk 0:00:53.4]} 31. Bxb6 {[%clk 0:01:00.4]} 31... Rc8 {[%clk
0:00:53.9]} 32. b5 {[%clk 0:00:58]} 32... Bd7 {[%clk 0:00:51.3]} 33. Rd4 {[%clk
0:00:53.8]} 33... axb5 {[%clk 0:00:46.4]} 34. axb5 {[%clk 0:00:48.1]} 34... e5
{[%clk 0:00:41.1]} 35. Rxd6 {[%clk 0:00:47.9]} 35... Be6 {[%clk 0:00:38.2]} 36.
c5 {[%clk 0:00:35.5]} 36... Bf5 {[%clk 0:00:32.8]} 37. c6 {[%clk 0:00:33.3]}
37... bxc6 {[%clk 0:00:32.7]} 38. bxc6 {[%clk 0:00:33.9]} 38... Rb8 {[%clk
0:00:28.5]} 39. c7 {[%clk 0:00:33.2]} 39... Rbc8 {[%clk 0:00:27.5]} 40. Rd8
{[%clk 0:00:32.5]} 40... Re7 {[%clk 0:00:21.3]} 41. Kf2 {[%clk 0:00:30.3]} 41...
Ke6 {[%clk 0:00:17.2]} 42. Red1 {[%clk 0:00:28.7]} 42... Rcxc7 {[%clk
0:00:16.5]} 43. R8d6+ {[%clk 0:00:23]} 43... Kf7 {[%clk 0:00:16.4]} 44. Bxc7
{[%clk 0:00:23.2]} 44... Rxc7 {[%clk 0:00:17.1]} 45. R1d2 {[%clk 0:00:23.3]}
45... Re7 {[%clk 0:00:17.6]} 46. Rb6 {[%clk 0:00:21.4]} 46... Bg6 {[%clk
0:00:17]} 47. Rdd6 {[%clk 0:00:21]} 47... Re8 {[%clk 0:00:16.1]} 48. Rd5 {[%clk
0:00:20.9]} 48... Re7 {[%clk 0:00:15]} 49. Rdd6 {[%clk 0:00:21]} 49... Re8
{[%clk 0:00:14.7]} 50. Rd7+ {[%clk 0:00:21.1]} 50... Kf8 {[%clk 0:00:14.7]} 51.
Rc7 {[%clk 0:00:21]} 51... Kg8 {[%clk 0:00:13.3]} 52. h4 {[%clk 0:00:21.1]}
52... Kf8 {[%clk 0:00:12.9]} 53. h5 {[%clk 0:00:19.1]} 53... Bd3 {[%clk
0:00:12.9]} 54. Rd6 {[%clk 0:00:17.1]} 54... Bb1 {[%clk 0:00:12.1]} 55. Rf6+
{[%clk 0:00:15.4]} 55... Kg8 {[%clk 0:00:12.2]} 56. Rb6 {[%clk 0:00:13.1]} 56...
Kf8 {[%clk 0:00:12.2]} 57. Rxb1 {[%clk 0:00:11.9]} 1-0